[Event "*** Titled Tuesday Blitz"]
[Site "Chess.com"]
[Date "2021.03.02"]
[Round "2"]
[White "BvsN"]
[Black "r31415"]
[Result "1-0"]
[WhiteElo "2311"]
[BlackElo "2483"]
[TimeControl "180+1"]
[EndTime "10:16:25 PST"]
[Termination "BvsN won on time"]

1. c4 {[%clk 0:03:00.9]} 1... Nf6 {[%clk 0:02:59.7]} 2. Nc3 {[%clk 0:03:00.9]}
2... d5 {[%clk 0:03:00.1]} 3. cxd5 {[%clk 0:03:00.5]} 3... Nxd5 {[%clk 0:03:01]}
4. Nf3 {[%clk 0:03:00.7]} 4... g6 {[%clk 0:03:00.5]} 5. h4 {[%clk 0:03:00.8]}
5... Bg7 {[%clk 0:02:41.7]} 6. e4 {[%clk 0:03:00.6]} 6... Nxc3 {[%clk
0:02:34.3]} 7. dxc3 {[%clk 0:03:00.3]} 7... Qxd1+ {[%clk 0:02:30.3]} 8. Kxd1
{[%clk 0:03:01.2]} 8... Nd7 {[%clk 0:02:24.3]} 9. Bf4 {[%clk 0:02:34.4]} 9...
Nc5 {[%clk 0:02:19.4]} 10. Nd2 {[%clk 0:02:29.6]} 10... c6 {[%clk 0:02:15]} 11.
h5 {[%clk 0:02:28.2]} 11... gxh5 {[%clk 0:02:12.9]} 12. Kc2 {[%clk 0:02:21]}
12... b6 {[%clk 0:01:33.5]} 13. Rxh5 {[%clk 0:02:17.7]} 13... Bb7 {[%clk
0:01:31.2]} 14. Be2 {[%clk 0:02:10.4]} 14... Ne6 {[%clk 0:01:22.8]} 15. Be3
{[%clk 0:02:08]} 15... O-O-O {[%clk 0:01:23]} 16. Rah1 {[%clk 0:02:04.7]} 16...
Nf8 {[%clk 0:01:23]} 17. f3 {[%clk 0:01:51.8]} 17... Rd6 {[%clk 0:01:16.7]} 18.
Bf4 {[%clk 0:01:38.1]} 18... Rg6 {[%clk 0:01:15.2]} 19. g4 {[%clk 0:01:34.3]}
19... c5 {[%clk 0:00:39.5]} 20. Nc4 {[%clk 0:01:22.4]} 20... Re6 {[%clk
0:00:11.5]} 21. Ne3 {[%clk 0:01:12.6]} 21... Ng6 {[%clk 0:00:08.5]} 22. Bg3
{[%clk 0:01:10.6]} 22... Nf8 {[%clk 0:00:05.9]} 23. Nf5 {[%clk 0:01:10.1]} 23...
Bf6 {[%clk 0:00:04.8]} 24. Bc4 {[%clk 0:01:06.7]} 1-0

[Event "*** Titled Tuesday Blitz"]
[Site "Chess.com"]
[Date "2021.03.02"]
[Round "2"]
[White "kekic76"]
[Black "PattyCastillo"]
[Result "1-0"]
[WhiteElo "2377"]
[BlackElo "2030"]
[TimeControl "180+1"]
[EndTime "10:16:26 PST"]
[Termination "kekic76 won by resignation"]

1. e4 {[%clk 0:03:00.9]} 1... c5 {[%clk 0:02:59.4]} 2. Nf3 {[%clk 0:03:00.9]}
2... d6 {[%clk 0:02:59.1]} 3. d4 {[%clk 0:03:00.9]} 3... cxd4 {[%clk 0:02:59.1]}
4. Nxd4 {[%clk 0:03:01.8]} 4... Nf6 {[%clk 0:02:59.2]} 5. Nc3 {[%clk 0:03:02]}
5... a6 {[%clk 0:02:59.3]} 6. Bg5 {[%clk 0:03:01.3]} 6... e6 {[%clk 0:02:58.4]}
7. f4 {[%clk 0:03:00.5]} 7... h6 {[%clk 0:02:58]} 8. Bxf6 {[%clk 0:02:58.2]}
8... Qxf6 {[%clk 0:02:57.2]} 9. Qd2 {[%clk 0:02:58]} 9... Nc6 {[%clk 0:02:48.8]}
10. Nf3 {[%clk 0:02:57.5]} 10... Qd8 {[%clk 0:02:37.3]} 11. O-O-O {[%clk
0:02:57.2]} 11... Be7 {[%clk 0:02:35.9]} 12. Kb1 {[%clk 0:02:56.2]} 12... Qc7
{[%clk 0:02:34.4]} 13. g4 {[%clk 0:02:56]} 13... b5 {[%clk 0:02:29.6]} 14. h4
{[%clk 0:02:54.5]} 14... Bb7 {[%clk 0:02:28.8]} 15. Bd3 {[%clk 0:02:54.3]} 15...
Rc8 {[%clk 0:02:24.4]} 16. g5 {[%clk 0:02:53.9]} 16... b4 {[%clk 0:01:42.1]} 17.
Ne2 {[%clk 0:02:53.1]} 17... a5 {[%clk 0:01:38]} 18. Ng3 {[%clk 0:02:49.5]}
18... a4 {[%clk 0:01:35.9]} 19. Bb5 {[%clk 0:02:15.8]} 19... a3 {[%clk
0:01:30.9]} 20. b3 {[%clk 0:02:15.2]} 20... Qb6 {[%clk 0:01:22.2]} 21. Bd3
{[%clk 0:02:11.2]} 21... h5 {[%clk 0:00:59.6]} 22. g6 {[%clk 0:02:08.9]} 22...
Bf6 {[%clk 0:00:52.7]} 23. gxf7+ {[%clk 0:02:06.9]} 23... Kxf7 {[%clk
0:00:45.2]} 24. Ng5+ {[%clk 0:02:06.4]} 24... Bxg5 {[%clk 0:00:40.2]} 25. hxg5
{[%clk 0:02:02.3]} 25... g6 {[%clk 0:00:39.2]} 26. f5 {[%clk 0:02:00.9]} 26...
Qd4 {[%clk 0:00:22.5]} 27. Qc1 {[%clk 0:02:00]} 27... Qb2+ {[%clk 0:00:18.5]}
28. Qxb2 {[%clk 0:01:59]} 28... axb2 {[%clk 0:00:19.4]} 29. Bc4 {[%clk
0:01:48.5]} 29... d5 {[%clk 0:00:15.8]} 30. fxe6+ {[%clk 0:01:47.2]} 30... Kxe6
{[%clk 0:00:12]} 31. exd5+ {[%clk 0:01:46.1]} 31... Ke7 {[%clk 0:00:07.5]} 32.
dxc6 {[%clk 0:01:45.6]} 32... Bxc6 {[%clk 0:00:08]} 33. Rhe1+ {[%clk 0:01:45.5]}
33... Kf8 {[%clk 0:00:07.3]} 34. Rd6 {[%clk 0:01:40.8]} 34... Bf3 {[%clk
0:00:03.1]} 35. Rf6+ {[%clk 0:01:39.8]} 1-0

[Event "*** Titled Tuesday Blitz"]
[Site "Chess.com"]
[Date "2021.03.02"]
[Round "2"]
[White "Gahan-MG"]
[Black "andrzej"]
[Result "1-0"]
[WhiteElo "2635"]
[BlackElo "2342"]
[TimeControl "180+1"]
[EndTime "10:16:29 PST"]
[Termination "Gahan-MG won by resignation"]

1. e4 {[%clk 0:03:00.9]} 1... c5 {[%clk 0:02:59.5]} 2. c3 {[%clk 0:03:00.9]}
2... d5 {[%clk 0:02:58.9]} 3. exd5 {[%clk 0:03:01.1]} 3... Qxd5 {[%clk
0:02:59.8]} 4. d4 {[%clk 0:03:01.2]} 4... e6 {[%clk 0:02:51.9]} 5. Nf3 {[%clk
0:03:00.8]} 5... Nf6 {[%clk 0:02:51.5]} 6. Be3 {[%clk 0:03:00.6]} 6... cxd4
{[%clk 0:02:37.8]} 7. cxd4 {[%clk 0:03:01.5]} 7... Nc6 {[%clk 0:02:36.1]} 8. Nc3
{[%clk 0:03:02.4]} 8... Qd8 {[%clk 0:02:35.7]} 9. a3 {[%clk 0:03:01.7]} 9... Be7
{[%clk 0:02:35.3]} 10. Bd3 {[%clk 0:03:01.1]} 10... O-O {[%clk 0:02:35.8]} 11.
O-O {[%clk 0:03:01]} 11... b6 {[%clk 0:02:36.3]} 12. Rc1 {[%clk 0:03:00.8]}
12... Bb7 {[%clk 0:02:36.6]} 13. Bb1 {[%clk 0:03:01]} 13... Rc8 {[%clk 0:02:27]}
14. Qd3 {[%clk 0:03:00.4]} 14... g6 {[%clk 0:02:21]} 15. Rfd1 {[%clk 0:02:59]}
15... Qd6 {[%clk 0:02:12.8]} 16. Ba2 {[%clk 0:02:29]} 16... Rfd8 {[%clk
0:02:00.5]} 17. Bg5 {[%clk 0:02:21.2]} 17... Ng4 {[%clk 0:01:38.2]} 18. Ne4
{[%clk 0:02:10]} 18... Qd7 {[%clk 0:01:28.1]} 19. h3 {[%clk 0:02:06]} 19... f5
{[%clk 0:01:17.9]} 20. hxg4 {[%clk 0:02:01.2]} 20... fxe4 {[%clk 0:01:17.1]} 21.
Qxe4 {[%clk 0:02:01.5]} 21... Nxd4 {[%clk 0:01:10.4]} 22. Qxd4 {[%clk 0:01:50]}
22... Qxd4 {[%clk 0:00:47.7]} 23. Bxe6+ {[%clk 0:01:47.4]} 23... Kg7 {[%clk
0:00:45.7]} 24. Rxd4 {[%clk 0:01:45.5]} 24... Bxg5 {[%clk 0:00:30.5]} 25. Bxc8
{[%clk 0:01:18.6]} 25... Rxd4 {[%clk 0:00:14.6]} 26. Rc7+ {[%clk 0:01:17.5]}
26... Kf6 {[%clk 0:00:09.9]} 27. Nxd4 {[%clk 0:01:16.2]} 1-0

[Event "*** Titled Tuesday Blitz"]
[Site "Chess.com"]
[Date "2021.03.02"]
[Round "2"]
[White "KononenkoD"]
[Black "Walter_White_Poland"]
[Result "1-0"]
[WhiteElo "2521"]
[BlackElo "2298"]
[TimeControl "180+1"]
[EndTime "10:16:30 PST"]
[Termination "KononenkoD won on time"]

1. d4 {[%clk 0:02:30.5]} 1... Nf6 {[%clk 0:02:57.8]} 2. c4 {[%clk 0:02:27.8]}
2... e6 {[%clk 0:02:57.5]} 3. g3 {[%clk 0:02:27.6]} 3... c5 {[%clk 0:02:56.7]}
4. Nf3 {[%clk 0:02:26.3]} 4... cxd4 {[%clk 0:02:56.2]} 5. Nxd4 {[%clk
0:02:27.2]} 5... Nc6 {[%clk 0:02:56.5]} 6. Bg2 {[%clk 0:02:27.3]} 6... Qb6
{[%clk 0:02:54.4]} 7. Nb5 {[%clk 0:02:21.9]} 7... d5 {[%clk 0:02:52.7]} 8. O-O
{[%clk 0:02:19.6]} 8... a6 {[%clk 0:02:31.3]} 9. cxd5 {[%clk 0:02:18.9]} 9...
axb5 {[%clk 0:02:05.9]} 10. dxc6 {[%clk 0:02:18.7]} 10... bxc6 {[%clk
0:02:05.8]} 11. Be3 {[%clk 0:02:07.6]} 11... Bc5 {[%clk 0:01:55.1]} 12. Bxc5
{[%clk 0:02:07.7]} 12... Qxc5 {[%clk 0:01:55.1]} 13. Nd2 {[%clk 0:02:04.5]}
13... Qb6 {[%clk 0:01:32.9]} 14. b4 {[%clk 0:01:40.4]} 14... O-O {[%clk
0:01:25.7]} 15. Nb3 {[%clk 0:01:40.8]} 15... e5 {[%clk 0:00:33.4]} 16. Qc2
{[%clk 0:01:39.9]} 16... Nd5 {[%clk 0:00:22.6]} 17. a3 {[%clk 0:01:37.2]} 17...
Be6 {[%clk 0:00:14.1]} 18. Nc5 {[%clk 0:01:36.4]} 18... Rac8 {[%clk 0:00:08.8]}
19. Rfd1 {[%clk 0:01:32.7]} 19... Qb8 {[%clk 0:00:06.8]} 20. Rd3 {[%clk
0:01:29]} 20... Nb6 {[%clk 0:00:06.4]} 21. Nxe6 {[%clk 0:01:26.8]} 21... fxe6
{[%clk 0:00:06.6]} 22. Qc5 {[%clk 0:01:19.9]} 22... Nc4 {[%clk 0:00:05.3]} 23.
Rad1 {[%clk 0:01:19.2]} 23... Rf6 {[%clk 0:00:04]} 24. Rd7 {[%clk 0:01:10]} 1-0

[Event "*** Titled Tuesday Blitz"]
[Site "Chess.com"]
[Date "2021.03.02"]
[Round "2"]
[White "Lovkov_Roman"]
[Black "blitis"]
[Result "1-0"]
[WhiteElo "2710"]
[BlackElo "2485"]
[TimeControl "180+1"]
[EndTime "10:16:34 PST"]
[Termination "Lovkov_Roman won on time"]

1. e4 {[%clk 0:03:00.9]} 1... c5 {[%clk 0:02:58.8]} 2. c3 {[%clk 0:03:00.2]}
2... d5 {[%clk 0:02:58.3]} 3. exd5 {[%clk 0:03:00.5]} 3... Qxd5 {[%clk
0:02:59.2]} 4. Nf3 {[%clk 0:03:00.9]} 4... g6 {[%clk 0:02:59]} 5. Na3 {[%clk
0:02:59.4]} 5... Bg7 {[%clk 0:02:58.4]} 6. Bc4 {[%clk 0:02:59.5]} 6... Qd8
{[%clk 0:02:49.5]} 7. d4 {[%clk 0:02:43.3]} 7... cxd4 {[%clk 0:02:48.4]} 8. Nb5
{[%clk 0:02:43.9]} 8... Nf6 {[%clk 0:02:42.5]} 9. Bf4 {[%clk 0:02:39.4]} 9...
Na6 {[%clk 0:02:38.2]} 10. Nbxd4 {[%clk 0:02:32.2]} 10... O-O {[%clk 0:02:37.9]}
11. O-O {[%clk 0:02:31.7]} 11... Nc5 {[%clk 0:02:18.6]} 12. Re1 {[%clk
0:02:29.6]} 12... a6 {[%clk 0:02:05.4]} 13. Qe2 {[%clk 0:02:28.9]} 13... Re8
{[%clk 0:01:39]} 14. Rad1 {[%clk 0:02:20.7]} 14... Qb6 {[%clk 0:01:33.5]} 15. h3
{[%clk 0:02:00.9]} 15... e6 {[%clk 0:01:11.5]} 16. Ne5 {[%clk 0:01:32.6]} 16...
Bd7 {[%clk 0:00:47.6]} 17. Ndf3 {[%clk 0:01:19.5]} 17... Rad8 {[%clk 0:00:45.8]}
18. Ng5 {[%clk 0:01:19.1]} 18... Nh5 {[%clk 0:00:30.4]} 19. Bh2 {[%clk
0:01:18.8]} 19... f6 {[%clk 0:00:22.7]} 20. Nxd7 {[%clk 0:01:13.4]} 20... Rxd7
{[%clk 0:00:16.7]} 21. Rxd7 {[%clk 0:01:12.9]} 21... fxg5 {[%clk 0:00:05]} 22.
Rd6 {[%clk 0:01:07.6]} 22... Qa7 {[%clk 0:00:02.7]} 23. b4 {[%clk 0:01:04.1]}
23... Na4 {[%clk 0:00:03]} 24. Rxe6 {[%clk 0:01:04.2]} 24... Rxe6 {[%clk
0:00:01.5]} 25. Qxe6+ {[%clk 0:01:05.1]} 1-0

[Event "*** Titled Tuesday Blitz"]
[Site "Chess.com"]
[Date "2021.03.02"]
[Round "2"]
[White "Chamal_Gedgafov"]
[Black "Fighter008"]
[Result "0-1"]
[WhiteElo "2287"]
[BlackElo "2623"]
[TimeControl "180+1"]
[EndTime "10:16:34 PST"]
[Termination "Fighter008 won by resignation"]

1. d4 {[%clk 0:03:00.9]} 1... Nf6 {[%clk 0:02:58.9]} 2. c4 {[%clk 0:03:00.8]}
2... g6 {[%clk 0:02:56]} 3. Nc3 {[%clk 0:03:00.4]} 3... Bg7 {[%clk 0:02:56]} 4.
e4 {[%clk 0:03:00.5]} 4... d6 {[%clk 0:02:54.6]} 5. Nf3 {[%clk 0:03:01.4]} 5...
O-O {[%clk 0:02:53.9]} 6. Be2 {[%clk 0:03:01.6]} 6... Nbd7 {[%clk 0:02:51.1]} 7.
Be3 {[%clk 0:02:59.8]} 7... Ng4 {[%clk 0:02:48.2]} 8. Bg5 {[%clk 0:02:59.3]}
8... h6 {[%clk 0:02:48.1]} 9. Bh4 {[%clk 0:02:59.4]} 9... c5 {[%clk 0:02:47.3]}
10. d5 {[%clk 0:02:59]} 10... a6 {[%clk 0:02:41.6]} 11. O-O {[%clk 0:02:56.3]}
11... Rb8 {[%clk 0:02:40.6]} 12. h3 {[%clk 0:02:54.1]} 12... Ngf6 {[%clk
0:02:33.2]} 13. a4 {[%clk 0:02:51.7]} 13... Nh5 {[%clk 0:02:31.7]} 14. Qd2
{[%clk 0:02:47.9]} 14... g5 {[%clk 0:02:16.8]} 15. Nxg5 {[%clk 0:02:32.4]} 15...
hxg5 {[%clk 0:02:15.8]} 16. Bxg5 {[%clk 0:02:33.3]} 16... Nhf6 {[%clk
0:02:14.2]} 17. f4 {[%clk 0:02:32.2]} 17... Nh7 {[%clk 0:02:13]} 18. Bh4 {[%clk
0:02:29.7]} 18... Qe8 {[%clk 0:02:12.1]} 19. Kh1 {[%clk 0:02:20.6]} 19... e6
{[%clk 0:02:05.8]} 20. Bd3 {[%clk 0:02:09.7]} 20... e5 {[%clk 0:02:05.4]} 21. f5
{[%clk 0:02:09]} 21... Bf6 {[%clk 0:02:00.3]} 22. Qh6 {[%clk 0:02:00.8]} 22...
Qe7 {[%clk 0:01:56]} 23. Be1 {[%clk 0:01:54.3]} 23... Bg5 {[%clk 0:01:53.3]} 24.
Qh5 {[%clk 0:01:54.4]} 24... Qf6 {[%clk 0:01:46.7]} 25. Qe2 {[%clk 0:01:46.6]}
25... Qh6 {[%clk 0:01:45]} 26. Rf3 {[%clk 0:01:44.6]} 26... Kh8 {[%clk
0:01:43.7]} 27. Rg3 {[%clk 0:01:43.9]} 27... Ndf6 {[%clk 0:01:40.4]} 28. a5
{[%clk 0:01:33.4]} 28... Bd7 {[%clk 0:01:40]} 29. Na4 {[%clk 0:01:32.1]} 29...
Bxa4 {[%clk 0:01:38.6]} 30. Rxa4 {[%clk 0:01:32.3]} 30... Bf4 {[%clk 0:01:37.6]}
31. Rf3 {[%clk 0:01:31.6]} 31... Rg8 {[%clk 0:01:37.2]} 32. b4 {[%clk
0:01:30.1]} 32... cxb4 {[%clk 0:01:33.7]} 33. Bxb4 {[%clk 0:01:29.9]} 33... Nh5
{[%clk 0:01:31.6]} 34. Qd1 {[%clk 0:01:19.5]} 34... Ng3+ {[%clk 0:01:30]} 35.
Kg1 {[%clk 0:01:19.5]} 35... Ng5 {[%clk 0:01:28.1]} 36. c5 {[%clk 0:01:09.2]}
36... Nxh3+ {[%clk 0:01:13.1]} 37. gxh3 {[%clk 0:01:03.8]} 37... Qxh3 {[%clk
0:01:06.5]} 38. Ra2 {[%clk 0:00:54.7]} 38... Nxe4+ {[%clk 0:00:57.3]} 0-1

[Event "*** Titled Tuesday Blitz"]
[Site "Chess.com"]
[Date "2021.03.02"]
[Round "2"]
[White "enriquebutti"]
[Black "johnathan113"]
[Result "0-1"]
[WhiteElo "2169"]
[BlackElo "2607"]
[TimeControl "180+1"]
[EndTime "10:16:34 PST"]
[Termination "johnathan113 won by resignation"]

1. d4 {[%clk 0:03:00]} 1... Nf6 {[%clk 0:03:00]} 2. Nf3 {[%clk 0:02:55.4]} 2...
g6 {[%clk 0:02:59.9]} 3. c4 {[%clk 0:02:54.6]} 3... Bg7 {[%clk 0:02:59.5]} 4.
Nc3 {[%clk 0:02:53.7]} 4... O-O {[%clk 0:03:00.1]} 5. Bg5 {[%clk 0:02:53.1]}
5... d6 {[%clk 0:02:59.9]} 6. e3 {[%clk 0:02:51.9]} 6... Nbd7 {[%clk 0:02:59.9]}
7. Be2 {[%clk 0:02:51.5]} 7... h6 {[%clk 0:03:00.2]} 8. Bh4 {[%clk 0:02:51]}
8... e5 {[%clk 0:02:58.3]} 9. O-O {[%clk 0:02:50.3]} 9... g5 {[%clk 0:02:54.6]}
10. Bg3 {[%clk 0:02:49.8]} 10... Nh5 {[%clk 0:02:55]} 11. dxe5 {[%clk
0:02:45.2]} 11... Nxg3 {[%clk 0:02:53]} 12. hxg3 {[%clk 0:02:44.9]} 12... Nxe5
{[%clk 0:02:52.4]} 13. Nd4 {[%clk 0:02:40.3]} 13... f5 {[%clk 0:02:44.2]} 14. f4
{[%clk 0:02:39.5]} 14... Nc6 {[%clk 0:02:23.3]} 15. Qd2 {[%clk 0:02:24.6]} 15...
Bd7 {[%clk 0:02:09.4]} 16. Bf3 {[%clk 0:02:10.6]} 16... Nxd4 {[%clk 0:02:04]}
17. exd4 {[%clk 0:02:10.2]} 17... c6 {[%clk 0:02:00.8]} 18. Rad1 {[%clk
0:02:05.1]} 18... Qe7 {[%clk 0:01:54]} 19. Rfe1 {[%clk 0:02:01]} 19... Qf6
{[%clk 0:01:48]} 20. d5 {[%clk 0:01:35.9]} 20... g4 {[%clk 0:01:46.2]} 21. Be2
{[%clk 0:01:34.7]} 21... c5 {[%clk 0:01:46.3]} 22. Bd3 {[%clk 0:01:33.4]} 22...
h5 {[%clk 0:01:45.2]} 23. Re2 {[%clk 0:01:22.9]} 23... h4 {[%clk 0:01:44.2]} 24.
Qe1 {[%clk 0:01:21.9]} 24... Qd4+ {[%clk 0:01:36.4]} 25. Kh2 {[%clk 0:01:19.1]}
25... hxg3+ {[%clk 0:01:33.7]} 26. Kxg3 {[%clk 0:01:18.6]} 26... Qf6 {[%clk
0:01:30.8]} 27. Qh1 {[%clk 0:01:03.4]} 27... Bh6 {[%clk 0:01:25.7]} 28. Rde1
{[%clk 0:00:58]} 28... Rf7 {[%clk 0:01:19.5]} 29. Re6 {[%clk 0:00:52.9]} 29...
Bxe6 {[%clk 0:01:19.7]} 30. Rxe6 {[%clk 0:00:52.4]} 30... Bxf4+ {[%clk
0:01:20.1]} 31. Kxf4 {[%clk 0:00:46.4]} 31... Qd4+ {[%clk 0:01:19.7]} 32. Kg5
{[%clk 0:00:42.5]} 32... Rg7+ {[%clk 0:01:11.2]} 33. Rg6 {[%clk 0:00:41.7]}
33... Rxg6+ {[%clk 0:01:11.7]} 34. Kxg6 {[%clk 0:00:41.4]} 34... Qg7+ {[%clk
0:01:06.6]} 0-1

[Event "*** Titled Tuesday Blitz"]
[Site "Chess.com"]
[Date "2021.03.02"]
[Round "2"]
[White "Durarbayli"]
[Black "Politov_Pavel"]
[Result "1-0"]
[WhiteElo "2780"]
[BlackElo "2403"]
[TimeControl "180+1"]
[EndTime "10:16:41 PST"]
[Termination "Durarbayli won by resignation"]

1. e4 {[%clk 0:02:59.1]} 1... Nc6 {[%clk 0:02:55.7]} 2. d4 {[%clk 0:02:57.7]}
2... d5 {[%clk 0:02:55.5]} 3. exd5 {[%clk 0:02:54.2]} 3... Qxd5 {[%clk
0:02:56.4]} 4. Be3 {[%clk 0:02:54.1]} 4... e5 {[%clk 0:02:54.1]} 5. Nc3 {[%clk
0:02:52]} 5... Bb4 {[%clk 0:02:53.3]} 6. dxe5 {[%clk 0:02:39.7]} 6... Qxd1+
{[%clk 0:02:53.7]} 7. Rxd1 {[%clk 0:02:38.2]} 7... Nxe5 {[%clk 0:02:54.3]} 8.
Bd4 {[%clk 0:02:36.5]} 8... Bd6 {[%clk 0:02:30.6]} 9. f4 {[%clk 0:02:23.3]} 9...
Ng6 {[%clk 0:01:41.5]} 10. Bxg7 {[%clk 0:02:17.8]} 10... Bxf4 {[%clk 0:01:41.6]}
11. Nf3 {[%clk 0:02:08.3]} 11... N8e7 {[%clk 0:01:38.8]} 12. Bxh8 {[%clk
0:02:04.1]} 12... Nxh8 {[%clk 0:01:39.7]} 13. Bc4 {[%clk 0:01:57.7]} 13... Bf5
{[%clk 0:01:39.8]} 14. O-O {[%clk 0:01:44.2]} 14... Bxc2 {[%clk 0:01:34.6]} 15.
Rde1 {[%clk 0:01:43.7]} 15... Bd6 {[%clk 0:01:32.5]} 16. Nd5 {[%clk 0:01:31]}
16... c6 {[%clk 0:00:57.7]} 17. Nxe7 {[%clk 0:01:18.2]} 17... Bxe7 {[%clk
0:00:58.6]} 18. Re2 {[%clk 0:01:18.5]} 18... Bf5 {[%clk 0:00:59]} 19. Nh4 {[%clk
0:01:08.8]} 19... Be6 {[%clk 0:00:47.6]} 20. Bxe6 {[%clk 0:01:06.3]} 20... fxe6
{[%clk 0:00:48.5]} 21. Rxe6 {[%clk 0:01:06.4]} 21... Kd7 {[%clk 0:00:47.4]} 22.
Rh6 {[%clk 0:01:06.7]} 22... c5 {[%clk 0:00:16.9]} 23. Rd1+ {[%clk 0:00:58]}
23... Kc7 {[%clk 0:00:14.9]} 24. Rxh7 {[%clk 0:00:58.9]} 24... Re8 {[%clk
0:00:12.8]} 25. Nf5 {[%clk 0:00:53.4]} 25... Ng6 {[%clk 0:00:12.2]} 26. Rg7
{[%clk 0:00:53.4]} 1-0

[Event "*** Titled Tuesday Blitz"]
[Site "Chess.com"]
[Date "2021.03.02"]
[Round "2"]
[White "Mbneu"]
[Black "Trankuilizer"]
[Result "0-1"]
[WhiteElo "2311"]
[BlackElo "2560"]
[TimeControl "180+1"]
[EndTime "10:16:49 PST"]
[Termination "Trankuilizer won on time"]

1. d4 {[%clk 0:03:00.9]} 1... d5 {[%clk 0:02:59.4]} 2. c4 {[%clk 0:02:59.6]}
2... Nf6 {[%clk 0:03:00.3]} 3. cxd5 {[%clk 0:02:58.4]} 3... Nxd5 {[%clk
0:03:00.3]} 4. e4 {[%clk 0:02:57.7]} 4... Nb6 {[%clk 0:03:00.2]} 5. Nc3 {[%clk
0:02:56.9]} 5... g6 {[%clk 0:03:00.5]} 6. f4 {[%clk 0:02:46.9]} 6... Bg7 {[%clk
0:03:00.8]} 7. Nf3 {[%clk 0:02:45.4]} 7... O-O {[%clk 0:03:01.1]} 8. e5 {[%clk
0:02:40.7]} 8... Bg4 {[%clk 0:02:58.7]} 9. Be2 {[%clk 0:02:38.6]} 9... Nc6
{[%clk 0:02:54.2]} 10. Be3 {[%clk 0:02:37.8]} 10... Nb4 {[%clk 0:02:52]} 11. O-O
{[%clk 0:02:33.3]} 11... N6d5 {[%clk 0:02:48.6]} 12. Nxd5 {[%clk 0:02:31]} 12...
Nxd5 {[%clk 0:02:49.5]} 13. Qd2 {[%clk 0:02:19.4]} 13... c6 {[%clk 0:02:45.1]}
14. Rad1 {[%clk 0:02:11.6]} 14... Qb6 {[%clk 0:02:44.9]} 15. Bf2 {[%clk
0:02:10.4]} 15... Rad8 {[%clk 0:02:41.8]} 16. h3 {[%clk 0:02:02.3]} 16... Bc8
{[%clk 0:02:37.1]} 17. Kh1 {[%clk 0:01:54.1]} 17... f6 {[%clk 0:02:35.1]} 18.
Bc4 {[%clk 0:01:48.1]} 18... Kh8 {[%clk 0:02:33.2]} 19. Bg3 {[%clk 0:01:28.4]}
19... Bf5 {[%clk 0:02:29.8]} 20. Nh4 {[%clk 0:01:25.7]} 20... Be4 {[%clk
0:02:29.3]} 21. f5 {[%clk 0:01:16.4]} 21... g5 {[%clk 0:02:20.5]} 22. Nf3 {[%clk
0:01:06.2]} 22... Bxf5 {[%clk 0:02:20.6]} 23. Qe2 {[%clk 0:00:58.9]} 23... Bg6
{[%clk 0:02:18.9]} 24. a3 {[%clk 0:00:39]} 24... a5 {[%clk 0:02:14.2]} 25. Ba2
{[%clk 0:00:34]} 25... h6 {[%clk 0:02:08.4]} 26. Nh2 {[%clk 0:00:30.5]} 26... f5
{[%clk 0:02:07.3]} 27. Rfe1 {[%clk 0:00:21.6]} 27... f4 {[%clk 0:02:06.6]} 28.
Bf2 {[%clk 0:00:21.6]} 28... e6 {[%clk 0:01:57.2]} 29. Nf3 {[%clk 0:00:18.9]}
29... Bf5 {[%clk 0:01:48.6]} 30. Nd2 {[%clk 0:00:17.9]} 30... Qxb2 {[%clk
0:01:45.4]} 31. Nc4 {[%clk 0:00:12.2]} 31... Qxe2 {[%clk 0:01:44.8]} 32. Rxe2
{[%clk 0:00:13.1]} 32... Nc3 {[%clk 0:01:45.1]} 33. Rde1 {[%clk 0:00:11.9]}
33... Nxe2 {[%clk 0:01:45]} 34. Rxe2 {[%clk 0:00:12.8]} 34... f3 {[%clk
0:01:37.2]} 35. Rb2 {[%clk 0:00:09.5]} 35... fxg2+ {[%clk 0:01:34.1]} 36. Kxg2
{[%clk 0:00:10.4]} 36... Be4+ {[%clk 0:01:34.5]} 37. Kg1 {[%clk 0:00:10.7]}
37... Bd5 {[%clk 0:01:32.8]} 38. Rxb7 {[%clk 0:00:07.3]} 38... Rb8 {[%clk
0:01:28.7]} 39. Rb3 {[%clk 0:00:01.2]} 39... Rxb3 {[%clk 0:01:24.5]} 0-1

[Event "*** Titled Tuesday Blitz"]
[Site "Chess.com"]
[Date "2021.03.02"]
[Round "2"]
[White "mhebden"]
[Black "tigra"]
[Result "0-1"]
[WhiteElo "2541"]
[BlackElo "2854"]
[TimeControl "180+1"]
[EndTime "10:16:50 PST"]
[Termination "tigra won on time"]

1. d4 {[%clk 0:03:00.9]} 1... Nf6 {[%clk 0:02:57.1]} 2. Nf3 {[%clk 0:03:01.3]}
2... e6 {[%clk 0:02:56.6]} 3. c3 {[%clk 0:02:59.1]} 3... c5 {[%clk 0:02:57.5]}
4. Bg5 {[%clk 0:02:58.1]} 4... b6 {[%clk 0:02:56.7]} 5. e4 {[%clk 0:02:57.1]}
5... h6 {[%clk 0:02:56.6]} 6. Bxf6 {[%clk 0:02:56.3]} 6... Qxf6 {[%clk
0:02:57.5]} 7. Bd3 {[%clk 0:02:55.3]} 7... Nc6 {[%clk 0:02:50.6]} 8. d5 {[%clk
0:02:51.7]} 8... Ne5 {[%clk 0:02:49.4]} 9. Nxe5 {[%clk 0:02:39.9]} 9... Qxe5
{[%clk 0:02:50.3]} 10. O-O {[%clk 0:02:39]} 10... g5 {[%clk 0:02:49.6]} 11. Nd2
{[%clk 0:02:36.2]} 11... Qf4 {[%clk 0:02:44.6]} 12. Qe2 {[%clk 0:02:27.7]} 12...
Bg7 {[%clk 0:02:36.6]} 13. g3 {[%clk 0:02:25.4]} 13... Qc7 {[%clk 0:02:35]} 14.
Ba6 {[%clk 0:02:14.2]} 14... Bxa6 {[%clk 0:02:29.2]} 15. Qxa6 {[%clk 0:02:13.1]}
15... exd5 {[%clk 0:02:29.5]} 16. exd5 {[%clk 0:02:11.5]} 16... O-O {[%clk
0:02:29.6]} 17. Rfe1 {[%clk 0:02:10.1]} 17... Rfe8 {[%clk 0:02:24.4]} 18. a4
{[%clk 0:02:09.5]} 18... Re5 {[%clk 0:02:20.3]} 19. Rxe5 {[%clk 0:01:44.5]}
19... Qxe5 {[%clk 0:02:21.2]} 20. Qb7 {[%clk 0:01:37.2]} 20... Re8 {[%clk
0:02:20.4]} 21. Nc4 {[%clk 0:01:30]} 21... Qe7 {[%clk 0:02:03.3]} 22. Qxa7
{[%clk 0:01:25.7]} 22... Qe2 {[%clk 0:01:58.9]} 23. Qxd7 {[%clk 0:01:23.8]}
23... Re4 {[%clk 0:01:44.8]} 24. Nd6 {[%clk 0:01:20.6]} 24... Re7 {[%clk
0:01:43.9]} 25. Qc8+ {[%clk 0:01:10.8]} 25... Bf8 {[%clk 0:01:43.8]} 26. Nf5
{[%clk 0:00:54.9]} 26... Re8 {[%clk 0:01:43.9]} 27. Qc6 {[%clk 0:00:53.4]} 27...
Re5 {[%clk 0:01:33.6]} 28. Nd6 {[%clk 0:00:36.9]} 28... Qxb2 {[%clk 0:01:23]}
29. Rf1 {[%clk 0:00:36.4]} 29... Qxc3 {[%clk 0:01:18]} 30. Nb5 {[%clk 0:00:31]}
30... Qf3 {[%clk 0:01:16.7]} 31. Nc7 {[%clk 0:00:23.5]} 31... c4 {[%clk
0:01:12.3]} 32. Qxc4 {[%clk 0:00:21.9]} 32... Bc5 {[%clk 0:01:11.9]} 33. Qc2
{[%clk 0:00:17]} 33... Re2 {[%clk 0:01:11]} 0-1